[Event "Titled Tuesday Blitz November 01 Late 2022"]
[White "Rasulov, Vugar"]
[Black "Korchmar, Vasiliy"]
[WhiteFideId "13402390"]
[BlackFideId "24131750"]
[WhiteElo "2509"]
[BlackElo "2370"]
[Result "1-0"]
[Round "03"]
[TimeControl "180+1"]
[Date "2022.11.01"]
[WhiteClock "0:01:19"]
[BlackClock "0:00:03"]

1. Nf3 {[%clk 0:03:00]}  d5 {[%clk 0:03:00]} 2. c4 {[%clk 0:03:00]}  c6 {[%clk 0:02:59]} 3. e3 {[%clk 0:03:00]}  Nf6 {[%clk 0:02:59]} 4. Nc3 {[%clk 0:03:00]}  e6 {[%clk 0:03:00]} 5. d4 {[%clk 0:02:59]}  Nbd7 {[%clk 0:02:59]} 6. Bd3 {[%clk 0:02:59]}  dxc4 {[%clk 0:02:59]} 7. Bxc4 {[%clk 0:03:00]}  b5 {[%clk 0:02:59]} 8. Bd3 {[%clk 0:03:01]}  b4 {[%clk 0:02:59]} 9. Ne4 {[%clk 0:02:55]}  Nxe4 {[%clk 0:02:59]} 10. Bxe4 {[%clk 0:02:56]}  Bb7 {[%clk 0:02:58]} 11. O-O {[%clk 0:02:51]}  Be7 {[%clk 0:02:58]} 12. a3 {[%clk 0:02:50]}  a5 {[%clk 0:02:31]} 13. Qc2 {[%clk 0:02:45]}  Rc8 {[%clk 0:02:09]} 14. axb4 {[%clk 0:02:44]}  axb4 {[%clk 0:02:10]} 15. Nd2 {[%clk 0:02:25]}  Qc7 {[%clk 0:00:58]} 16. Nb3 {[%clk 0:02:13]}  c5 {[%clk 0:00:56]} 17. Ra7 {[%clk 0:02:00]}  Rb8 {[%clk 0:00:43]} 18. Bxb7 {[%clk 0:01:59]}  Rxb7 {[%clk 0:00:42]} 19. Rxb7 {[%clk 0:02:00]}  Qxb7 {[%clk 0:00:43]} 20. dxc5 {[%clk 0:01:59]}  Qc7 {[%clk 0:00:33]} 21. Bd2 {[%clk 0:01:55]}  O-O {[%clk 0:00:31]} 22. Bxb4 {[%clk 0:01:55]}  Rb8 {[%clk 0:00:26]} 23. Ba3 {[%clk 0:01:55]}  h5 {[%clk 0:00:18]} 24. h3 {[%clk 0:01:53]}  Ne5 {[%clk 0:00:15]} 25. Nd4 {[%clk 0:01:51]}  h4 {[%clk 0:00:04]} 26. Rc1 {[%clk 0:01:48]}  Rc8 {[%clk 0:00:04]} 27. c6 {[%clk 0:01:44]}  Bxa3 {[%clk 0:00:04]} 28. bxa3 {[%clk 0:01:45]}  Qa5 {[%clk 0:00:04]} 29. Qc3 {[%clk 0:01:37]}  Qd5 {[%clk 0:00:02]} 30. a4 {[%clk 0:01:35]}  f5 {[%clk 0:00:02]} 31. a5 {[%clk 0:01:30]}  f4 {[%clk 0:00:02]} 32. exf4 {[%clk 0:01:30]}  Ng6 {[%clk 0:00:03]} 33. Qe3 {[%clk 0:01:26]}  e5 {[%clk 0:00:02]} 34. fxe5 {[%clk 0:01:26]}  Nxe5 {[%clk 0:00:03]} 35. a6 {[%clk 0:01:22]}  Nc4 {[%clk 0:00:03]} 36. Qe6+ {[%clk 0:01:22]}  Qxe6 {[%clk 0:00:04]} 37. Nxe6 {[%clk 0:01:22]}  Rxc6 {[%clk 0:00:04]} 38. a7 {[%clk 0:01:21]}  Ra6 {[%clk 0:00:03]} 39. Rxc4 {[%clk 0:01:20]}  Rxa7 {[%clk 0:00:04]} 40. Ng5 {[%clk 0:01:19]}  Kf8 {[%clk 0:00:03]} 41. Rxh4 {[%clk 0:01:19]} 1-0


[Site "https://www.chess.com"]

[Event "Titled Tuesday Blitz November 01 Late 2022"]
[White "Roman, Rodrigo"]
[Black "Luxama, Jacques Muller"]
[WhiteFideId "3701220"]
[BlackFideId "11900113"]
[WhiteElo "2001"]
[BlackElo "1931"]
[Result "1-0"]
[Round "03"]
[TimeControl "180+1"]
[Date "2022.11.02"]
[WhiteClock "0:01:13"]
[BlackClock "0:01:02"]

1. e4 {[%clk 0:02:08]}  c5 {[%clk 0:02:58]} 2. Nf3 {[%clk 0:02:08]}  d6 {[%clk 0:02:57]} 3. Ke2 {[%clk 0:02:08]}  Bg4 {[%clk 0:02:43]} 4. d3 {[%clk 0:01:59]}  Nc6 {[%clk 0:02:43]} 5. c3 {[%clk 0:01:59]}  Bxf3+ {[%clk 0:02:41]} 6. gxf3 {[%clk 0:01:59]}  g6 {[%clk 0:02:39]} 7. h4 {[%clk 0:01:59]}  h5 {[%clk 0:02:39]} 8. Bh3 {[%clk 0:01:59]}  Bg7 {[%clk 0:02:38]} 9. Be3 {[%clk 0:01:59]}  Nf6 {[%clk 0:02:38]} 10. Nd2 {[%clk 0:01:59]}  Ne5 {[%clk 0:02:31]} 11. d4 {[%clk 0:01:58]}  cxd4 {[%clk 0:02:29]} 12. cxd4 {[%clk 0:01:59]}  Ned7 {[%clk 0:02:27]} 13. Qa4 {[%clk 0:01:55]}  O-O {[%clk 0:02:24]} 14. Rac1 {[%clk 0:01:45]}  a6 {[%clk 0:02:23]} 15. d5 {[%clk 0:01:44]}  b5 {[%clk 0:02:21]} 16. Qc2 {[%clk 0:01:44]}  Ne5 {[%clk 0:02:17]} 17. Qc7 {[%clk 0:01:43]}  Re8 {[%clk 0:02:00]} 18. Rc2 {[%clk 0:01:30]}  Bf8 {[%clk 0:01:52]} 19. Rhc1 {[%clk 0:01:30]}  Qxc7 {[%clk 0:01:48]} 20. Rxc7 {[%clk 0:01:30]}  e6 {[%clk 0:01:44]} 21. Bg5 {[%clk 0:01:20]}  Nh7 {[%clk 0:01:42]} 22. dxe6 {[%clk 0:01:19]}  fxe6 {[%clk 0:01:38]} 23. f4 {[%clk 0:01:16]}  Nxg5 {[%clk 0:01:36]} 24. hxg5 {[%clk 0:01:15]}  Nf7 {[%clk 0:01:30]} 25. Rd7 {[%clk 0:01:11]}  Rad8 {[%clk 0:01:29]} 26. Ra7 {[%clk 0:01:10]}  e5 {[%clk 0:01:26]} 27. Rcc7 {[%clk 0:01:09]}  Nh8 {[%clk 0:01:23]} 28. f5 {[%clk 0:01:07]}  d5 {[%clk 0:01:15]} 29. exd5 {[%clk 0:01:04]}  Rxd5 {[%clk 0:01:15]} 30. f6 {[%clk 0:01:05]}  Red8 {[%clk 0:01:13]} 31. Be6+ {[%clk 0:01:05]}  Nf7 {[%clk 0:01:11]} 32. Bxf7+ {[%clk 0:01:06]}  Kh8 {[%clk 0:01:11]} 33. Bxd5 {[%clk 0:01:07]}  Rxd5 {[%clk 0:01:11]} 34. Rh7+ {[%clk 0:01:08]}  Kg8 {[%clk 0:01:10]} 35. Rhd7 {[%clk 0:01:08]}  Rxd7 {[%clk 0:01:09]} 36. Rxd7 {[%clk 0:01:09]}  Bc5 {[%clk 0:01:09]} 37. Ne4 {[%clk 0:01:10]}  Bf8 {[%clk 0:01:08]} 38. f7+ {[%clk 0:01:11]}  Kg7 {[%clk 0:01:07]} 39. Nf6 {[%clk 0:01:12]}  Bc5 {[%clk 0:01:06]} 40. Ne8+ {[%clk 0:01:13]}  Kf8 {[%clk 0:01:06]} 41. f3 {[%clk 0:01:12]}  Bd4 {[%clk 0:01:05]} 42. Nf6 {[%clk 0:01:11]}  Bc5 {[%clk 0:01:02]} 43. Nh7+ {[%clk 0:01:12]}  Kg7 {[%clk 0:01:02]} 44. f8=Q# {[%clk 0:01:13]} 1-0


[Site "https://www.chess.com"]

[Event "Titled Tuesday Blitz November 01 Late 2022"]
[White "Shapiro, Daniel"]
[Black "Prydun, Andriy"]
[WhiteFideId "2001780"]
[BlackFideId "14145898"]
[WhiteElo "2271"]
[BlackElo "2163"]
[Result "1/2-1/2"]
[Round "03"]
[TimeControl "180+1"]
[Date "2022.11.02"]
[WhiteClock "0:00:06"]
[BlackClock "0:00:13"]

1. d4 {[%clk 0:03:00]}  Nf6 {[%clk 0:02:59]} 2. c4 {[%clk 0:03:01]}  e6 {[%clk 0:02:58]} 3. g3 {[%clk 0:02:58]}  d5 {[%clk 0:02:57]} 4. Nf3 {[%clk 0:02:58]}  Be7 {[%clk 0:02:57]} 5. Bg2 {[%clk 0:02:58]}  O-O {[%clk 0:02:57]} 6. O-O {[%clk 0:02:58]}  c6 {[%clk 0:02:57]} 7. Qc2 {[%clk 0:02:58]}  Nbd7 {[%clk 0:02:58]} 8. Rd1 {[%clk 0:02:58]}  b6 {[%clk 0:02:57]} 9. Nc3 {[%clk 0:02:54]}  Ba6 {[%clk 0:02:56]} 10. b3 {[%clk 0:02:46]}  Rc8 {[%clk 0:02:55]} 11. Bb2 {[%clk 0:02:38]}  dxc4 {[%clk 0:02:54]} 12. Nd2 {[%clk 0:02:38]}  c5 {[%clk 0:02:48]} 13. d5 {[%clk 0:02:37]}  exd5 {[%clk 0:02:40]} 14. Nxd5 {[%clk 0:02:32]}  cxb3 {[%clk 0:02:21]} 15. Nxb3 {[%clk 0:02:32]}  Qe8 {[%clk 0:02:19]} 16. Bh3 {[%clk 0:02:21]}  Rc6 {[%clk 0:01:45]} 17. Nd4 {[%clk 0:01:59]}  Rd6 {[%clk 0:00:49]} 18. Nc7 {[%clk 0:01:22]}  Qd8 {[%clk 0:00:34]} 19. Nxa6 {[%clk 0:01:21]}  cxd4 {[%clk 0:00:34]} 20. Rxd4 {[%clk 0:00:48]}  Rxd4 {[%clk 0:00:33]} 21. Bxd4 {[%clk 0:00:48]}  Nb8 {[%clk 0:00:29]} 22. Rd1 {[%clk 0:00:39]}  Nxa6 {[%clk 0:00:27]} 23. Bxf6 {[%clk 0:00:39]}  Bxf6 {[%clk 0:00:28]} 24. Rxd8 {[%clk 0:00:38]}  Rxd8 {[%clk 0:00:29]} 25. a3 {[%clk 0:00:31]}  Nc5 {[%clk 0:00:28]} 26. Bg2 {[%clk 0:00:27]}  g6 {[%clk 0:00:26]} 27. h4 {[%clk 0:00:24]}  h5 {[%clk 0:00:25]} 28. e3 {[%clk 0:00:20]}  Kg7 {[%clk 0:00:25]} 29. Bf1 {[%clk 0:00:20]}  Rd6 {[%clk 0:00:24]} 30. Bc4 {[%clk 0:00:20]}  a5 {[%clk 0:00:24]} 31. Qb1 {[%clk 0:00:18]}  Be7 {[%clk 0:00:21]} 32. Kg2 {[%clk 0:00:17]}  Rf6 {[%clk 0:00:21]} 33. f4 {[%clk 0:00:15]}  Rd6 {[%clk 0:00:20]} 34. Qc2 {[%clk 0:00:11]}  f5 {[%clk 0:00:15]} 35. Qc3+ {[%clk 0:00:10]}  Bf6 {[%clk 0:00:15]} 36. Qc2 {[%clk 0:00:09]}  Ne4 {[%clk 0:00:14]} 37. Bd3 {[%clk 0:00:10]}  Nc5 {[%clk 0:00:13]} 38. Bc4 {[%clk 0:00:10]}  Ne4 {[%clk 0:00:13]} 39. Bd3 {[%clk 0:00:09]}  Nc5 {[%clk 0:00:13]} 40. Bc4 {[%clk 0:00:06]} 1/2-1/2


[Site "https://www.chess.com"]

[Event "Titled Tuesday Blitz November 01 Late 2022"]
[White "Silvestre, Christian"]
[Black "Soto Vega, Jorge"]
[WhiteFideId "30956269"]
[BlackFideId "3800580"]
[WhiteElo "2341"]
[BlackElo "2263"]
[Result "1-0"]
[Round "03"]
[TimeControl "180+1"]
[Date "2022.11.02"]
[WhiteClock "0:02:17"]
[BlackClock "0:02:18"]

1. Nf3 {[%clk 0:02:57]}  d5 {[%clk 0:02:56]} 2. e4 {[%clk 0:02:57]}  dxe4 {[%clk 0:02:56]} 3. Ng5 {[%clk 0:02:57]}  Qd5 {[%clk 0:02:56]} 4. d3 {[%clk 0:02:54]}  exd3 {[%clk 0:02:56]} 5. Bxd3 {[%clk 0:02:51]}  Nf6 {[%clk 0:02:56]} 6. O-O {[%clk 0:02:50]}  e6 {[%clk 0:02:54]} 7. Nc3 {[%clk 0:02:47]}  Qd8 {[%clk 0:02:54]} 8. Re1 {[%clk 0:02:45]}  Be7 {[%clk 0:02:42]} 9. Qf3 {[%clk 0:02:44]}  Nc6 {[%clk 0:02:41]} 10. Bf4 {[%clk 0:02:34]}  Nd4 {[%clk 0:02:30]} 11. Qd1 {[%clk 0:02:26]}  c5 {[%clk 0:02:29]} 12. Nce4 {[%clk 0:02:25]}  O-O {[%clk 0:02:22]} 13. Nxf6+ {[%clk 0:02:20]}  Bxf6 {[%clk 0:02:19]} 14. Bxh7+ {[%clk 0:02:17]}  Kh8 {[%clk 0:02:18]} 15. Qh5 {[%clk 0:02:17]} 1-0


[Site "https://www.chess.com"]

[Event "Titled Tuesday Blitz November 01 Late 2022"]
[White "Sokolovsky, Yahli"]
[Black "Kamsky, Gata"]
[WhiteFideId "2820242"]
[BlackFideId "2000024"]
[WhiteElo "2316"]
[BlackElo "2666"]
[Result "1-0"]
[Round "03"]
[TimeControl "180+1"]
[Date "2022.11.02"]
[WhiteClock "0:00:09"]
[BlackClock "0:00:14"]

1. b3 {[%clk 0:03:00]}  d5 {[%clk 0:02:51]} 2. e3 {[%clk 0:03:00]}  Bf5 {[%clk 0:02:51]} 3. Bb2 {[%clk 0:03:00]}  e6 {[%clk 0:02:51]} 4. d4 {[%clk 0:03:00]}  Nf6 {[%clk 0:02:50]} 5. Bd3 {[%clk 0:03:00]}  Bg6 {[%clk 0:02:49]} 6. Ne2 {[%clk 0:03:00]}  Bd6 {[%clk 0:02:43]} 7. Nf4 {[%clk 0:03:00]}  Nbd7 {[%clk 0:02:41]} 8. O-O {[%clk 0:02:58]}  c6 {[%clk 0:02:35]} 9. Ba3 {[%clk 0:02:20]}  Bxa3 {[%clk 0:02:31]} 10. Nxa3 {[%clk 0:02:21]}  e5 {[%clk 0:02:19]} 11. dxe5 {[%clk 0:02:15]}  Nxe5 {[%clk 0:02:17]} 12. Bxg6 {[%clk 0:02:11]}  hxg6 {[%clk 0:02:16]} 13. Qd4 {[%clk 0:02:06]}  Qe7 {[%clk 0:02:11]} 14. Nb1 {[%clk 0:02:00]}  g5 {[%clk 0:02:02]} 15. Nd3 {[%clk 0:01:56]}  Nxd3 {[%clk 0:02:02]} 16. cxd3 {[%clk 0:01:57]}  Rh4 {[%clk 0:01:59]} 17. Qc3 {[%clk 0:01:53]}  O-O-O {[%clk 0:01:47]} 18. Nd2 {[%clk 0:01:50]}  g4 {[%clk 0:01:44]} 19. Rfc1 {[%clk 0:01:44]}  d4 {[%clk 0:01:37]} 20. exd4 {[%clk 0:01:20]}  Nd5 {[%clk 0:01:35]} 21. Qc5 {[%clk 0:01:11]}  Qxc5 {[%clk 0:01:25]} 22. dxc5 {[%clk 0:01:12]}  Nf4 {[%clk 0:01:17]} 23. Rc4 {[%clk 0:01:10]}  Nxd3 {[%clk 0:01:01]} 24. Nf3 {[%clk 0:00:21]}  Rh5 {[%clk 0:00:53]} 25. Rxg4 {[%clk 0:00:21]}  g6 {[%clk 0:00:42]} 26. b4 {[%clk 0:00:20]}  a5 {[%clk 0:00:41]} 27. a3 {[%clk 0:00:20]}  a4 {[%clk 0:00:40]} 28. h4 {[%clk 0:00:18]}  Rhd5 {[%clk 0:00:38]} 29. Ng5 {[%clk 0:00:17]}  f5 {[%clk 0:00:35]} 30. Rg3 {[%clk 0:00:15]}  Ne5 {[%clk 0:00:32]} 31. Ne6 {[%clk 0:00:15]}  Rd1+ {[%clk 0:00:31]} 32. Rxd1 {[%clk 0:00:13]}  Rxd1+ {[%clk 0:00:31]} 33. Kh2 {[%clk 0:00:14]}  Ng4+ {[%clk 0:00:31]} 34. Rxg4 {[%clk 0:00:14]}  fxg4 {[%clk 0:00:31]} 35. Nf4 {[%clk 0:00:14]}  Ra1 {[%clk 0:00:29]} 36. Nxg6 {[%clk 0:00:14]}  Rxa3 {[%clk 0:00:29]} 37. h5 {[%clk 0:00:15]}  Rd3 {[%clk 0:00:28]} 38. Ne7+ {[%clk 0:00:09]}  Kc7 {[%clk 0:00:25]} 39. h6 {[%clk 0:00:09]}  a3 {[%clk 0:00:24]} 40. h7 {[%clk 0:00:08]}  Rd8 {[%clk 0:00:24]} 41. Ng8 {[%clk 0:00:09]}  a2 {[%clk 0:00:15]} 42. h8=Q {[%clk 0:00:09]}  Rd1 {[%clk 0:00:14]} 43. Qe5+ {[%clk 0:00:08]}  Kc8 {[%clk 0:00:14]} 44. Qe6+ {[%clk 0:00:08]}  Kc7 {[%clk 0:00:14]} 45. Qxa2 {[%clk 0:00:09]} 1-0


[Site "https://www.chess.com"]

[Event "Titled Tuesday Blitz November 01 Late 2022"]
[White "Storey, Charles H"]
[Black "Mladenovic, Stefan"]
[WhiteFideId "406686"]
[BlackFideId "942227"]
[WhiteElo "2252"]
[BlackElo "2337"]
[Result "1-0"]
[Round "03"]
[TimeControl "180+1"]
[Date "2022.11.02"]
[WhiteClock "0:01:11"]
[BlackClock "0:01:52"]

1. c4 {[%clk 0:02:56]}  e5 {[%clk 0:02:59]} 2. g3 {[%clk 0:02:57]}  Nc6 {[%clk 0:02:59]} 3. Bg2 {[%clk 0:02:58]}  Bc5 {[%clk 0:02:59]} 4. e3 {[%clk 0:02:57]}  a6 {[%clk 0:02:59]} 5. Ne2 {[%clk 0:02:57]}  d6 {[%clk 0:02:59]} 6. d4 {[%clk 0:02:57]}  Ba7 {[%clk 0:02:59]} 7. h3 {[%clk 0:02:56]}  h5 {[%clk 0:02:57]} 8. Nbc3 {[%clk 0:02:56]}  Nf6 {[%clk 0:02:56]} 9. d5 {[%clk 0:02:45]}  Ne7 {[%clk 0:02:55]} 10. b4 {[%clk 0:02:38]}  Bd7 {[%clk 0:02:54]} 11. Ba3 {[%clk 0:02:36]}  Qc8 {[%clk 0:02:44]} 12. c5 {[%clk 0:02:33]}  a5 {[%clk 0:02:43]} 13. cxd6 {[%clk 0:02:30]}  cxd6 {[%clk 0:02:42]} 14. Rc1 {[%clk 0:02:26]}  Qd8 {[%clk 0:02:37]} 15. b5 {[%clk 0:02:21]}  Bf5 {[%clk 0:02:30]} 16. e4 {[%clk 0:02:17]}  Bg6 {[%clk 0:02:30]} 17. Qb3 {[%clk 0:02:09]}  Qb6 {[%clk 0:02:30]} 18. O-O {[%clk 0:02:07]}  h4 {[%clk 0:02:24]} 19. Na4 {[%clk 0:02:02]}  Qd8 {[%clk 0:02:24]} 20. b6 {[%clk 0:01:59]}  Bb8 {[%clk 0:02:24]} 21. Nec3 {[%clk 0:01:49]}  hxg3 {[%clk 0:02:22]} 22. fxg3 {[%clk 0:01:48]}  Nh5 {[%clk 0:02:22]} 23. Nb5 {[%clk 0:01:39]}  Ng8 {[%clk 0:02:19]} 24. Rc7 {[%clk 0:01:36]}  Bxc7 {[%clk 0:02:07]} 25. bxc7 {[%clk 0:01:29]}  Qg5 {[%clk 0:02:03]} 26. Nxd6+ {[%clk 0:01:25]}  Kf8 {[%clk 0:01:56]} 27. Nxf7+ {[%clk 0:01:22]}  Qe7 {[%clk 0:01:52]} 28. Nxh8+ {[%clk 0:01:11]} 1-0


[Site "https://www.chess.com"]

[Event "Titled Tuesday Blitz November 01 Late 2022"]
[White "Szpar, Milosz"]
[Black "Petrovic, Aleksa"]
[WhiteFideId "1184989"]
[BlackFideId "967629"]
[WhiteElo "2422"]
[BlackElo "2242"]
[Result "1-0"]
[Round "03"]
[TimeControl "180+1"]
[Date "2022.11.02"]
[WhiteClock "0:01:12"]
[BlackClock "0:00:02"]

1. d4 {[%clk 0:02:58]}  e6 {[%clk 0:02:59]} 2. e4 {[%clk 0:02:56]}  d5 {[%clk 0:02:59]} 3. Nc3 {[%clk 0:02:52]}  Bb4 {[%clk 0:02:58]} 4. Ne2 {[%clk 0:02:48]}  dxe4 {[%clk 0:02:57]} 5. a3 {[%clk 0:02:47]}  Be7 {[%clk 0:02:58]} 6. Nxe4 {[%clk 0:02:46]}  Nc6 {[%clk 0:02:58]} 7. g3 {[%clk 0:02:43]}  Nf6 {[%clk 0:02:58]} 8. Bg2 {[%clk 0:02:42]}  O-O {[%clk 0:02:55]} 9. O-O {[%clk 0:02:37]}  Qd7 {[%clk 0:02:55]} 10. c3 {[%clk 0:02:23]}  b6 {[%clk 0:02:55]} 11. Nf4 {[%clk 0:02:11]}  Bb7 {[%clk 0:02:53]} 12. Re1 {[%clk 0:02:11]}  Rad8 {[%clk 0:02:53]} 13. Qc2 {[%clk 0:02:08]}  h6 {[%clk 0:02:48]} 14. b4 {[%clk 0:02:06]}  Qc8 {[%clk 0:02:19]} 15. Bb2 {[%clk 0:02:03]}  e5 {[%clk 0:02:14]} 16. Nxf6+ {[%clk 0:01:58]}  Bxf6 {[%clk 0:02:12]} 17. Nh5 {[%clk 0:01:59]}  Bg5 {[%clk 0:02:00]} 18. h4 {[%clk 0:01:54]}  Qg4 {[%clk 0:01:50]} 19. hxg5 {[%clk 0:01:48]}  Qxh5 {[%clk 0:01:48]} 20. gxh6 {[%clk 0:01:48]}  Rd6 {[%clk 0:01:34]} 21. hxg7 {[%clk 0:01:38]}  Kxg7 {[%clk 0:01:13]} 22. b5 {[%clk 0:01:38]}  Rh8 {[%clk 0:00:39]} 23. bxc6 {[%clk 0:01:37]}  Bxc6 {[%clk 0:00:21]} 24. Re4 {[%clk 0:01:37]}  Bxe4 {[%clk 0:00:18]} 25. Qxe4 {[%clk 0:01:36]}  exd4 {[%clk 0:00:17]} 26. cxd4 {[%clk 0:01:35]}  Qg6 {[%clk 0:00:17]} 27. d5+ {[%clk 0:01:35]}  f6 {[%clk 0:00:16]} 28. Qxg6+ {[%clk 0:01:34]}  Kxg6 {[%clk 0:00:16]} 29. Rc1 {[%clk 0:01:35]}  Rc8 {[%clk 0:00:14]} 30. g4 {[%clk 0:01:33]}  Kg5 {[%clk 0:00:13]} 31. Rc4 {[%clk 0:01:30]}  f5 {[%clk 0:00:09]} 32. Bc1+ {[%clk 0:01:30]}  Kf6 {[%clk 0:00:09]} 33. gxf5 {[%clk 0:01:31]}  Rg8 {[%clk 0:00:08]} 34. Kf1 {[%clk 0:01:27]}  Kxf5 {[%clk 0:00:07]} 35. Rxc7 {[%clk 0:01:26]}  Rdg6 {[%clk 0:00:06]} 36. Bh3+ {[%clk 0:01:24]}  Ke5 {[%clk 0:00:07]} 37. Be6 {[%clk 0:01:22]}  Rg1+ {[%clk 0:00:06]} 38. Ke2 {[%clk 0:01:23]}  Re8 {[%clk 0:00:05]} 39. Bb2+ {[%clk 0:01:19]}  Kd6 {[%clk 0:00:05]} 40. Rxa7 {[%clk 0:01:18]}  Rb1 {[%clk 0:00:06]} 41. Rd7+ {[%clk 0:01:16]}  Kc5 {[%clk 0:00:06]} 42. Rc7+ {[%clk 0:01:17]}  Kd6 {[%clk 0:00:05]} 43. Rc6+ {[%clk 0:01:17]}  Ke7 {[%clk 0:00:06]} 44. Be5 {[%clk 0:01:16]}  Ra8 {[%clk 0:00:04]} 45. Rc7+ {[%clk 0:01:16]}  Kd8 {[%clk 0:00:04]} 46. Rd7+ {[%clk 0:01:16]}  Ke8 {[%clk 0:00:04]} 47. Bd6 {[%clk 0:01:12]}  Rb2+ {[%clk 0:00:02]} 48. Kf1 {[%clk 0:01:12]}  Rb1+ {[%clk 0:00:02]} 49. Kg2 {[%clk 0:01:12]}  Rb3 {[%clk 0:00:02]} 50. Rh7 {[%clk 0:01:12]} 1-0


[Site "https://www.chess.com"]

[Event "Titled Tuesday Blitz November 01 Late 2022"]
[White "Taboas Rodriguez, Daniel"]
[Black "Dubov, Daniil"]
[WhiteFideId "2208466"]
[BlackFideId "24126055"]
[WhiteElo "2429"]
[BlackElo "2791"]
[Result "0-1"]
[Round "03"]
[TimeControl "180+1"]
[Date "2022.11.02"]
[WhiteClock "0:00:01"]
[BlackClock "0:01:32"]

1. d4 {[%clk 0:02:59]}  g6 {[%clk 0:03:00]} 2. Nf3 {[%clk 0:02:59]}  d6 {[%clk 0:03:01]} 3. c4 {[%clk 0:03:00]}  Nf6 {[%clk 0:03:02]} 4. Nc3 {[%clk 0:03:01]}  Bg7 {[%clk 0:03:03]} 5. e4 {[%clk 0:03:01]}  O-O {[%clk 0:03:04]} 6. Be2 {[%clk 0:03:02]}  Nc6 {[%clk 0:03:04]} 7. d5 {[%clk 0:03:02]}  Nb4 {[%clk 0:03:04]} 8. O-O {[%clk 0:03:01]}  Re8 {[%clk 0:03:04]} 9. Be3 {[%clk 0:02:58]}  e6 {[%clk 0:03:04]} 10. Nd4 {[%clk 0:02:38]}  exd5 {[%clk 0:03:02]} 11. exd5 {[%clk 0:02:39]}  Rxe3 {[%clk 0:03:02]} 12. fxe3 {[%clk 0:02:39]}  Qe7 {[%clk 0:03:03]} 13. Qd2 {[%clk 0:02:34]}  Na6 {[%clk 0:03:04]} 14. Bf3 {[%clk 0:02:30]}  Nc5 {[%clk 0:03:03]} 15. Rae1 {[%clk 0:02:31]}  a5 {[%clk 0:03:03]} 16. Kh1 {[%clk 0:02:23]}  Bd7 {[%clk 0:03:01]} 17. Ndb5 {[%clk 0:02:19]}  Bxb5 {[%clk 0:03:00]} 18. Nxb5 {[%clk 0:02:17]}  a4 {[%clk 0:02:57]} 19. Nd4 {[%clk 0:02:15]}  Re8 {[%clk 0:02:56]} 20. b4 {[%clk 0:02:12]}  axb3 {[%clk 0:02:55]} 21. axb3 {[%clk 0:02:13]}  Ncd7 {[%clk 0:02:55]} 22. Qc2 {[%clk 0:01:57]}  h5 {[%clk 0:02:54]} 23. Nb5 {[%clk 0:01:31]}  Ne5 {[%clk 0:02:53]} 24. Be2 {[%clk 0:01:31]}  h4 {[%clk 0:02:43]} 25. Bf3 {[%clk 0:01:09]}  Nh7 {[%clk 0:02:40]} 26. Nd4 {[%clk 0:01:02]}  Ng5 {[%clk 0:02:39]} 27. Rd1 {[%clk 0:00:56]}  Nd7 {[%clk 0:02:35]} 28. Rfe1 {[%clk 0:00:50]}  h3 {[%clk 0:02:35]} 29. Qf2 {[%clk 0:00:50]}  Ne5 {[%clk 0:02:33]} 30. Qg3 {[%clk 0:00:47]}  hxg2+ {[%clk 0:02:31]} 31. Bxg2 {[%clk 0:00:47]}  Nh7 {[%clk 0:02:30]} 32. Rg1 {[%clk 0:00:44]}  Nf6 {[%clk 0:02:27]} 33. Bf3 {[%clk 0:00:37]}  Ned7 {[%clk 0:02:24]} 34. Nf5 {[%clk 0:00:34]}  Qf8 {[%clk 0:02:24]} 35. Nxg7 {[%clk 0:00:20]}  Kxg7 {[%clk 0:02:25]} 36. Bg4 {[%clk 0:00:21]}  Ne4 {[%clk 0:02:22]} 37. Qg2 {[%clk 0:00:21]}  Ndf6 {[%clk 0:02:20]} 38. Rdf1 {[%clk 0:00:19]}  Re5 {[%clk 0:02:19]} 39. Bf3 {[%clk 0:00:19]}  Nc5 {[%clk 0:02:17]} 40. Bd1 {[%clk 0:00:13]}  Qe7 {[%clk 0:02:15]} 41. Qf3 {[%clk 0:00:12]}  Rxe3 {[%clk 0:02:15]} 42. Qf4 {[%clk 0:00:12]}  Nd3 {[%clk 0:02:14]} 43. Qh4 {[%clk 0:00:10]}  Qe5 {[%clk 0:02:12]} 44. Rg2 {[%clk 0:00:09]}  Re4 {[%clk 0:02:02]} 45. Qg3 {[%clk 0:00:08]}  Re3 {[%clk 0:01:49]} 46. Qxe5 {[%clk 0:00:08]}  Nxe5 {[%clk 0:01:49]} 47. Ra2 {[%clk 0:00:05]}  c5 {[%clk 0:01:32]} 48. Ra7 {[%clk 0:00:04]}  b6 {[%clk 0:01:32]} 49. Ra2 {[%clk 0:00:02]}  Ne4 {[%clk 0:01:32]} 50. Re2 {[%clk 0:00:01]}  Ng4 {[%clk 0:01:32]} 0-1


[Site "https://www.chess.com"]